fUSD/lending_fUSD_20260128
["ID","MTS","AMOUNT","RATE_DAILY","PERIOD"]
[403887077,1769629847297,-150.0,0.00040451,7]
[403887078,1769629847306,-191.03050609,0.0004047,7]
[403887079,1769629847316,-152.41922063,0.0004047,7]
[403887080,1769629847326,-361.37453716,0.0004047,7]
[403887081,1769629847337,-150.0,0.00040472,7]
[403887082,1769629847348,-150.0,0.00040483,7]
[403887083,1769629847360,-150.0,0.00040484,7]
[403887084,1769629847370,-150.0,0.00040496,7]
[403887085,1769629847587,-150.0,0.00040496,7]
[403887086,1769629847609,-191.03050609,0.00040514,7]
[403887087,1769629847622,-152.41922063,0.00040514,7]
[403887088,1769629847634,-361.37453716,0.00040514,7]
[403887089,1769629847646,-150.0,0.0004052,7]
[403887090,1769629847657,-150.0,0.0004052,7]
[403887091,1769629847669,-150.0,0.00040527,7]
[403887092,1769629847683,-150.0,0.00040534,7]
[403887093,1769629847695,-150.0,0.00040534,7]
[403887094,1769629847706,-150.0,0.00040541,7]
[403887095,1769629847719,-150.0,0.00040546,7]
[403887096,1769629847732,-191.03050609,0.00040558,7]
[403887097,1769629847743,-152.41922063,0.00040558,7]
[403887098,1769629847755,-361.37453716,0.00040558,7]
[403887099,1769629847765,-150.0,0.00040565,7]
[403887100,1769629847775,-150.0,0.00040567,7]
[403887101,1769629847786,-150.0,0.00040572,7]
[403887102,1769629847795,-150.0,0.00040586,7]
[403887103,1769629847805,-150.0,0.00040596,7]
[403887104,1769629847815,-191.03050609,0.00040602,7]
[403887105,1769629847825,-152.41922063,0.00040602,7]
[403887106,1769629847841,-361.37453716,0.00040602,7]
[403887107,1769629847856,-150.0,0.00040614,7]
[403887108,1769629847867,-150.0,0.00040616,7]
[403887109,1769629847878,-150.0,0.00040631,7]
[403887110,1769629847888,-150.0,0.00040646,7]
[403887111,1769629847898,-191.03050609,0.00040646,7]
[403887112,1769629847908,-150.0,0.00040646,7]
[403887113,1769629847919,-150.0,0.00040646,7]
[403887114,1769629847930,-152.41922063,0.00040646,7]
[403887115,1769629847940,-361.37453716,0.00040646,7]
[403887116,1769629847955,-150.0,0.00040646,7]
[403887117,1769629847965,-150.0,0.00040646,7]
[403887118,1769629847978,-568.23,0.00040658,2]
[403887119,1769629847988,-150.0,0.00040661,7]
[403887120,1769629847998,-150.0,0.00040662,7]
[403887121,1769629848008,-150.0,0.00040676,7]
[403887122,1769629848019,-191.03050609,0.0004069,7]
[403887123,1769629848029,-152.41922063,0.0004069,7]
[403887124,1769629848039,-361.37453716,0.0004069,7]
[403887125,1769629848049,-150.0,0.00040696,7]
[403887126,1769629848059,-150.0,0.00040702,7]
[403887127,1769629848070,-150.0,0.00040705,7]
[403887128,1769629848080,-150.0,0.00040709,7]
[403887129,1769629848090,-150.0,0.00040709,7]
[403887130,1769629848100,-150.0,0.00040721,7]
[403887131,1769629848110,-150.0,0.00040726,7]
[403887132,1769629848120,-191.03050609,0.00040734,7]
[403887133,1769629848130,-152.41922063,0.00040734,7]
[403887134,1769629848141,-361.37453716,0.00040734,7]
[403887135,1769629848151,-150.0,0.00040746,7]
[403887136,1769629848162,-150.0,0.00040749,7]
[403887137,1769629848172,-150.0,0.00040756,7]
[403887138,1769629848182,-150.0,0.00040765,7]
[403887139,1769629848192,-191.03050609,0.00040778,7]
[403887140,1769629848202,-152.41922063,0.00040778,7]
[403887141,1769629848212,-361.37453716,0.00040778,7]
[403887142,1769629848223,-150.0,0.00040794,7]
[403887143,1769629848234,-150.0,0.00040796,7]
[403887144,1769629848244,-150.0,0.00040804,7]
[403887145,1769629848254,-152.48,0.00040805,120]
[403887146,1769629848263,-150.0,0.00040807,7]
[403887147,1769629848274,-150.0,0.0004081,7]
[403887148,1769629848284,-191.03050609,0.00040822,7]
[403887149,1769629848294,-152.41922063,0.00040822,7]
[403887150,1769629848304,-361.37453716,0.00040822,7]
[403887151,1769629848314,-150.0,0.00040827,7]
[403887152,1769629848324,-150.0,0.00040838,7]
[403887153,1769629848334,-150.0,0.00040846,7]
[403887154,1769629848343,-150.0,0.00040851,7]
[403887155,1769629848353,-150.0,0.00040855,7]
[403887156,1769629848363,-191.03050609,0.00040866,7]
[403887157,1769629848372,-152.41922063,0.00040866,7]
[403887158,1769629848382,-361.37453716,0.00040866,7]
[403887159,1769629848392,-150.0,0.00040869,7]
[403887160,1769629848406,-150.0,0.00040869,7]
[403887161,1769629848416,-150.0,0.00040883,7]
[403887162,1769629848426,-150.0,0.00040888,7]
[403887163,1769629848435,-150.0,0.00040888,7]
[403887164,1769629848446,-150.0,0.00040896,7]
[403887165,1769629848457,-150.0,0.00040898,7]
[403887166,1769629848468,-150.0,0.00040898,7]
[403887167,1769629848479,-220.05,0.000409,30]
[403887168,1769629848489,-1728.13,0.000409,14]
[403887169,1769629848500,-150.0,0.000409,7]
[403887170,1769629848510,-152.48,0.00040905,120]
[403887171,1769629848520,-191.03050609,0.0004091,7]
[403887172,1769629848530,-152.41922063,0.0004091,7]
[403887173,1769629848541,-361.37453716,0.0004091,7]
[403887174,1769629848551,-150.0,0.00040927,7]
[403887175,1769629848562,-1361.5,0.00040945,120]
[403887176,1769629848572,-150.0,0.00040945,7]
[403887177,1769629848583,-150.0,0.00040946,7]
[403887178,1769629848593,-150.0,0.00040946,7]
[403887179,1769629848603,-191.03050609,0.00040954,7]
[403887180,1769629848614,-152.41922063,0.00040954,7]
[403887181,1769629848623,-361.37453716,0.00040954,7]
[403887182,1769629848633,-150.0,0.00040968,7]
[403887183,1769629848643,-150.0,0.00040972,7]
[403887184,1769629848654,-150.0,0.0004099,7]
[403887185,1769629848664,-150.0,0.00040993,7]
[403887186,1769629848674,-150.0,0.00040996,7]
[403887187,1769629848688,-191.03050609,0.00040998,7]
[403887188,1769629848698,-152.41922063,0.00040998,7]
[403887189,1769629848708,-361.37453716,0.00040998,7]
[403887190,1769629848719,-152.48,0.00041005,120]
[403887191,1769629848729,-150.0,0.00041016,7]
[403887192,1769629848739,-150.0,0.00041035,7]
[403887193,1769629848749,-150.0,0.00041037,7]
[403887194,1769629848761,-150.0,0.0004104,7]
[403887195,1769629848771,-191.03050609,0.00041042,7]
[403887196,1769629848782,-152.41922063,0.00041042,7]
[403887197,1769629848793,-361.37453716,0.00041042,7]
[403887198,1769629848803,-150.0,0.00041046,7]
[403887199,1769629848813,-150.0,0.00041049,7]
[403887200,1769629848823,-150.0,0.0004106,7]
[403887201,1769629848833,-150.0,0.0004108,7]
[403887202,1769629848843,-191.03050609,0.00041086,7]
[403887203,1769629848853,-152.41922063,0.00041086,7]
[403887204,1769629848863,-361.37453716,0.00041086,7]
[403887205,1769629848873,-150.0,0.00041088,7]
[403887206,1769629848883,-150.0,0.00041088,7]
[403887207,1769629848894,-155.60519804,0.0004109,7]
[403887208,1769629848903,-798.0,0.00041096,120]
[403887209,1769629848913,-150.0,0.00041096,30]
[403887210,1769629848923,-151.0,0.000411,20]
[403887211,1769629848933,-151.0,0.000411,120]
[403887212,1769629848947,-151.0,0.000411,120]
[403887213,1769629848958,-151.0,0.000411,120]
[403887214,1769629848969,-151.0,0.000411,120]
[403887215,1769629848980,-151.0,0.000411,120]
[403887216,1769629848991,-151.0,0.000411,120]
[403887217,1769629849001,-214.296415,0.000411,120]
[403887218,1769629849012,-214.296415,0.000411,120]
[403887219,1769629849022,-214.296415,0.000411,120]
[403887220,1769629849032,-214.296415,0.000411,120]
[403887221,1769629849042,-151.0,0.000411,120]
[403887222,1769629849053,-151.0,0.000411,120]
[403887223,1769629849064,-151.0,0.000411,120]
[403887224,1769629849074,-151.0,0.000411,120]
[403887225,1769629849085,-151.0,0.000411,120]
[403887226,1769629849095,-151.0,0.000411,120]
[403887227,1769629849105,-151.0,0.000411,7]
[403887228,1769629849116,-151.0,0.000411,7]
[403887229,1769629849126,-151.0,0.000411,120]
[403887230,1769629849136,-151.0,0.000411,120]
[403887231,1769629849146,-151.0,0.000411,28]
[403887232,1769629849157,-651.72926534,0.000411,120]
[403887233,1769629849168,-651.72926534,0.000411,120]
[403887234,1769629849178,-651.72926534,0.000411,120]
[403887235,1769629849187,-651.72926534,0.000411,120]
[403887236,1769629849198,-651.72926534,0.000411,120]
[403887237,1769629849208,-651.72926534,0.000411,120]
[403887238,1769629849220,-651.72926534,0.000411,120]
[403887239,1769629849230,-651.72926534,0.000411,120]
[403887240,1769629849240,-651.72926534,0.000411,120]
[403887241,1769629849251,-651.72926534,0.000411,120]
[403887242,1769629849260,-651.72926534,0.000411,120]
[403887243,1769629849271,-651.72926534,0.000411,120]
[403887244,1769629849281,-651.72926534,0.000411,120]
[403887245,1769629849291,-651.72926534,0.000411,120]
[403887246,1769629849301,-651.72926534,0.000411,120]
[403887247,1769629849311,-651.72926534,0.000411,120]
[403887248,1769629849326,-651.72926534,0.000411,120]
[403887249,1769629849337,-651.72926534,0.000411,120]
[403887250,1769629849348,-651.72926534,0.000411,120]
[403887251,1769629849360,-651.72,0.000411,120]
[403887252,1769629849370,-1520.70161913,0.000411,120]
[403887253,1769629849381,-1520.70161913,0.000411,120]
[403887254,1769629849392,-1520.70161913,0.000411,120]
[403887255,1769629849402,-1520.70161913,0.000411,120]
[403887256,1769629849412,-1520.70161913,0.000411,120]
[403887257,1769629849423,-1520.70161913,0.000411,120]
[403887258,1769629849434,-1520.70161913,0.000411,120]
[403887259,1769629849445,-1520.70161913,0.000411,120]
[403887260,1769629849455,-1520.70161913,0.000411,120]
[403887261,1769629849465,-1520.70161913,0.000411,120]
[403887262,1769629849477,-1520.70161913,0.000411,120]
[403887263,1769629849487,-1520.70161913,0.000411,120]
[403887264,1769629849498,-1520.70161913,0.000411,120]
[403887265,1769629849508,-1520.70161913,0.000411,120]
[403887266,1769629849518,-945.74198669,0.000411,120]
[403887267,1769629849529,-945.74198669,0.000411,120]
[403887268,1769629849539,-945.74198669,0.000411,120]
[403887269,1769629849549,-945.74198669,0.000411,120]
[403887270,1769629849559,-945.74198669,0.000411,120]
[403887271,1769629849569,-945.74198669,0.000411,120]
[403887272,1769629849580,-945.74198669,0.000411,120]
[403887273,1769629849589,-945.74198669,0.000411,120]
[403887274,1769629849599,-945.74198669,0.000411,120]
[403887275,1769629849609,-945.74198669,0.000411,120]
[403887276,1769629849619,-945.74198669,0.000411,120]
[403887277,1769629849629,-945.74198669,0.000411,120]
[403887278,1769629849639,-945.74198669,0.000411,120]
[403887279,1769629849649,-945.74198669,0.000411,120]
[403887280,1769629849659,-945.74198669,0.000411,120]
[403887281,1769629849669,-945.74198669,0.000411,120]
[403887282,1769629849682,-945.74198669,0.000411,120]
[403887283,1769629849692,-945.74198669,0.000411,120]
[403887284,1769629849702,-945.74198669,0.000411,120]
[403887285,1769629849712,-945.74,0.000411,120]
[403887286,1769629849723,-2206.73130228,0.000411,120]
[403887287,1769629849734,-2206.73130228,0.000411,120]
[403887288,1769629849745,-2206.73130228,0.000411,120]
[403887289,1769629849756,-2206.73130228,0.000411,120]
[403887290,1769629849767,-2206.73130228,0.000411,120]
[403887291,1769629849777,-2206.73130228,0.000411,120]
[403887292,1769629849786,-2206.73130228,0.000411,120]
[403887293,1769629849796,-2206.73130228,0.000411,120]
[403887294,1769629849811,-151.0,0.000411,120]
[403887295,1769629849821,-2206.73130228,0.000411,120]
[403887296,1769629849831,-2206.73130228,0.000411,120]
[403887297,1769629849841,-2206.73130228,0.000411,120]
[403887298,1769629849851,-2206.73130228,0.000411,120]
[403887299,1769629849861,-2206.73130228,0.000411,120]
[403887300,1769629849871,-2206.73130228,0.000411,120]
[403887301,1769629849882,-541.46841315,0.000411,120]
[403887302,1769629850362,-541.46841315,0.000411,120]
[403887303,1769629850386,-541.46841315,0.000411,120]
[403887304,1769629850396,-541.46841315,0.000411,120]
[403887305,1769629850406,-541.46841315,0.000411,120]
[403887306,1769629850415,-541.46841315,0.000411,120]
[403887307,1769629850425,-541.46841315,0.000411,120]
[403887308,1769629850435,-541.46841315,0.000411,120]
[403887309,1769629850446,-541.46841315,0.000411,120]
[403887310,1769629850456,-541.46841315,0.000411,120]
[403887311,1769629850466,-541.46841315,0.000411,120]
[403887312,1769629850477,-541.46841315,0.000411,120]
[403887313,1769629850487,-541.46841315,0.000411,120]
[403887314,1769629850497,-541.46841315,0.000411,120]
[403887315,1769629850518,-541.46841315,0.000411,120]
[403887316,1769629850529,-541.46841315,0.000411,120]
[403887317,1769629850539,-541.46841315,0.000411,120]
[403887318,1769629850550,-541.46841315,0.000411,120]
[403887319,1769629850560,-541.46841315,0.000411,120]
[403887320,1769629850571,-541.46,0.000411,120]
[403887321,1769629850580,-1263.42629735,0.000411,120]
[403887322,1769629850592,-1263.42629735,0.000411,120]
[403887323,1769629850602,-1263.42629735,0.000411,120]
[403887324,1769629850612,-1263.42629735,0.000411,120]
[403887325,1769629850622,-1263.42629735,0.000411,120]
[403887326,1769629850633,-1263.42629735,0.000411,120]
[403887327,1769629850643,-1263.42629735,0.000411,120]
[403887328,1769629850654,-1263.42629735,0.000411,120]
[403887329,1769629850664,-1263.42629735,0.000411,120]
[403887330,1769629850674,-1263.42629735,0.000411,120]
[403887331,1769629850689,-1263.42629735,0.000411,120]
[403887332,1769629850699,-1263.42629735,0.000411,120]
[403887333,1769629850709,-1263.42629735,0.000411,120]
[403887334,1769629850721,-1263.42629735,0.000411,120]
[403887335,1769629850731,-151.0,0.000411,120]
[403887336,1769629850741,-218.159228,0.000411,120]
[403887337,1769629850753,-218.159228,0.000411,120]
[403887338,1769629850763,-218.159228,0.000411,120]
[403887339,1769629850773,-218.159228,0.000411,120]
[403887340,1769629850783,-152.48,0.00041105,120]
[403887341,1769629850793,-150.0,0.00041105,30]
[403887342,1769629850804,-150.0,0.00041125,30]
[403887343,1769629850815,-191.03050609,0.0004113,30]
[403887344,1769629850824,-152.41922063,0.0004113,30]
[403887345,1769629850834,-361.37453716,0.0004113,30]
[403887346,1769629850844,-150.0,0.0004113,30]
[403887347,1769629850854,-150.0,0.0004113,30]
[403887348,1769629850864,-150.0,0.00041135,30]
[403887349,1769629850875,-150.0,0.00041146,30]
[403887350,1769629850886,-150.0,0.00041149,30]
[403887351,1769629850896,-150.0,0.0004117,30]
[403887352,1769629850907,-191.03050609,0.00041174,30]
[403887353,1769629850916,-152.41922063,0.00041174,30]
[403887354,1769629850926,-361.37453716,0.00041174,30]
[403887355,1769629850935,-516.0,0.00041174,120]
[403887356,1769629850945,-150.0,0.00041182,30]
[403887357,1769629850955,-150.0,0.00041194,30]
[403887358,1769629850964,-150.0,0.00041196,30]
[403887359,1769629850976,-150.0,0.00041204,30]
[403887360,1769629850986,-150.0,0.00041204,30]
[403887361,1769629850997,-152.48,0.00041205,120]
[403887362,1769629851007,-150.0,0.0004121,30]
[403887363,1769629851017,-150.0,0.00041214,30]
[403887364,1769629851027,-191.03050609,0.00041218,30]
[403887365,1769629851037,-152.41922063,0.00041218,30]
[403887366,1769629851047,-361.37453716,0.00041218,30]
[403887367,1769629851056,-150.0,0.0004123,30]
[403887368,1769629851066,-150.0,0.00041238,30]
[403887369,1769629851076,-150.0,0.00041246,30]
[403887370,1769629851086,-150.0,0.00041259,30]
[403887371,1769629851097,-191.03050609,0.00041262,30]
[403887372,1769629851108,-152.41922063,0.00041262,30]
[403887373,1769629851118,-361.37453716,0.00041262,30]
[403887374,1769629851128,-1520.70161913,0.00041271,120]
[403887375,1769629851138,-2206.73130228,0.00041271,120]
[403887376,1769629851147,-1263.42629735,0.00041271,120]
[403887377,1769629851157,-150.0,0.00041277,30]
[403887378,1769629851167,-150.0,0.00041277,30]
[403887379,1769629851177,-150.0,0.00041283,30]
[403887380,1769629851188,-150.0,0.00041291,30]
[403887381,1769629851199,-150.0,0.00041296,30]
[403887382,1769629851209,-150.0,0.00041304,30]
[403887383,1769629851220,-152.48,0.00041305,120]
[403887384,1769629851230,-191.03050609,0.00041306,30]
[403887385,1769629851239,-152.41922063,0.00041306,30]
[403887386,1769629851250,-361.37453716,0.00041306,30]
[403887387,1769629851259,-150.0,0.00041324,30]
[403887388,1769629851269,-150.0,0.00041327,30]
[403887389,1769629851279,-150.0,0.00041347,30]
[403887390,1769629851289,-150.0,0.00041349,30]
[403887391,1769629851300,-191.03050609,0.0004135,30]
[403887392,1769629851310,-152.41922063,0.0004135,30]
[403887393,1769629851320,-361.37453716,0.0004135,30]
[403887394,1769629851330,-150.0,0.00041372,30]
[403887395,1769629851340,-150.0,0.00041372,30]
[403887396,1769629851350,-150.0,0.00041372,30]
[403887397,1769629851359,-150.0,0.00041372,30]
[403887398,1769629851370,-150.0,0.00041372,30]
[403887399,1769629851380,-150.0,0.00041372,30]
[403887400,1769629851390,-150.0,0.00041372,30]
[403887401,1769629851400,-150.0,0.00041372,30]
[403887402,1769629851410,-191.03050609,0.00041394,30]
[403887403,1769629851420,-152.41922063,0.00041394,30]
[403887404,1769629851430,-361.37453716,0.00041394,30]
[403887405,1769629851440,-150.0,0.00041394,30]
[403887406,1769629851450,-150.0,0.00041397,30]
[403887407,1769629851459,-152.48,0.00041405,120]
[403887408,1769629851469,-150.0,0.00041416,30]
[403887409,1769629851479,-150.0,0.00041419,30]
[403887410,1769629851489,-191.03050609,0.00041438,30]
[403887411,1769629851499,-152.41922063,0.00041438,30]
[403887412,1769629851509,-361.37453716,0.00041438,30]
[403887413,1769629851519,-150.0,0.00041439,30]
[403887414,1769629851530,-150.0,0.00041447,30]
[403887415,1769629851541,-150.0,0.00041452,30]
[403887416,1769629851552,-150.0,0.0004146,30]
[403887417,1769629851562,-150.0,0.00041466,30]
[403887418,1769629851572,-150.0,0.00041466,30]
[403887419,1769629851582,-191.03050609,0.00041482,30]
[403887420,1769629851592,-152.41922063,0.00041482,30]
[403887421,1769629851601,-361.37453716,0.00041482,30]
[403887422,1769629851612,-150.0,0.00041484,30]
[403887423,1769629851622,-1361.5,0.00041493,120]
[403887424,1769629851632,-150.0,0.00041497,30]
[403887425,1769629851642,-152.48,0.00041505,120]
[403887426,1769629851651,-150.0,0.00041505,30]
[403887427,1769629851661,-150.0,0.00041514,30]
[403887428,1769629851671,-191.03050609,0.00041526,30]
[403887429,1769629851682,-152.41922063,0.00041526,30]
[403887430,1769629851691,-361.37453716,0.00041526,30]
[403887431,1769629851702,-150.0,0.00041529,30]
[403887432,1769629851712,-150.0,0.00041533,30]
[403887433,1769629851724,-150.0,0.00041539,30]
[403887434,1769629851734,-150.0,0.00041539,30]
[403887435,1769629851744,-150.0,0.00041547,30]
[403887436,1769629851755,-150.0,0.00041549,30]
[403887437,1769629851764,-150.0,0.00041561,30]
[403887438,1769629851774,-191.03050609,0.0004157,30]
[403887439,1769629851783,-152.41922063,0.0004157,30]
[403887440,1769629851793,-361.37453716,0.0004157,30]
[403887441,1769629851803,-150.0,0.00041574,30]
[403887442,1769629851814,-150.0,0.00041594,30]
[403887443,1769629851824,-150.0,0.00041597,30]
[403887444,1769629851834,-152.48,0.00041605,120]
[403887445,1769629851844,-150.0,0.00041608,30]
[403887446,1769629851854,-191.03050609,0.00041613,30]
[403887447,1769629851865,-152.41922063,0.00041613,30]
[403887448,1769629851874,-361.37453716,0.00041613,30]
[403887449,1769629851885,-150.0,0.00041613,30]
[403887450,1769629851895,-150.0,0.00041613,30]
[403887451,1769629851905,-150.0,0.00041618,30]
[403887452,1769629851914,-150.0,0.00041638,30]
[403887453,1769629851924,-798.0,0.00041644,120]
[403887454,1769629851934,-150.0,0.00041647,30]
[403887455,1769629851944,-150.0,0.00041656,30]
[403887456,1769629851953,-150.0,0.00041656,30]
[403887457,1769629851963,-191.03050609,0.00041657,30]
[403887458,1769629851973,-152.41922063,0.00041657,30]
[403887459,1769629851982,-361.37453716,0.00041657,30]
[403887460,1769629851991,-150.0,0.00041663,30]
[403887461,1769629852003,-150.0,0.00041683,30]
[403887462,1769629852012,-2499.8,0.00041693,2]
[403887463,1769629852023,-150.0,0.00041694,30]
[403887464,1769629852033,-150.0,0.00041697,30]
[403887465,1769629852042,-510.39,0.000417,14]
[403887466,1769629852053,-11607.0,0.000417,117]
[403887467,1769629852064,-151.0,0.000417,120]
[403887468,1769629852073,-151.0,0.000417,120]
[403887469,1769629852083,-191.03050609,0.00041701,30]
[403887470,1769629852094,-152.41922063,0.00041701,30]
[403887471,1769629852105,-361.37453716,0.00041701,30]
[403887472,1769629852116,-150.0,0.00041703,30]
[403887473,1769629852126,-152.48,0.00041705,120]
[403887474,1769629852136,-1520.70161913,0.00041705,120]
[403887475,1769629852146,-2206.73130228,0.00041705,120]
[403887476,1769629852156,-1263.42629735,0.00041705,120]
[403887477,1769629852166,-150.0,0.00041707,30]
[403887478,1769629852175,-150.0,0.00041708,30]
[403887479,1769629852185,-150.0,0.00041727,30]
[403887480,1769629852195,-191.03050609,0.00041745,30]
[403887481,1769629852204,-152.41922063,0.00041745,30]
[403887482,1769629852214,-361.37453716,0.00041745,30]
[403887483,1769629852224,-150.0,0.00041747,30]
[403887484,1769629852234,-150.0,0.0004175,30]
[403887485,1769629852243,-150.0,0.00041753,30]
[403887486,1769629852253,-150.0,0.00041771,30]
[403887487,1769629852263,-150.0,0.00041775,30]
[403887488,1769629852273,-191.03050609,0.00041789,30]
[403887489,1769629852283,-152.41922063,0.00041789,30]
[403887490,1769629852292,-361.37453716,0.00041789,30]
[403887491,1769629852302,-150.0,0.00041797,30]
[403887492,1769629852312,-150.0,0.00041798,30]
[403887493,1769629852321,-150.0,0.00041798,30]
[403887494,1769629852331,-152.48,0.00041805,120]
[403887495,1769629852341,-150.0,0.00041816,30]
[403887496,1769629852350,-2499.8,0.00041828,2]
[403887497,1769629852360,-191.03050609,0.00041833,30]
[403887498,1769629852370,-152.41922063,0.00041833,30]
[403887499,1769629852380,-361.37453716,0.00041833,30]
[403887500,1769629852390,-150.0,0.00041843,30]
[403887501,1769629852398,-150.0,0.00041845,30]
[403887502,1769629852408,-150.0,0.00041845,30]
[403887503,1769629852419,-150.0,0.00041847,30]
[403887504,1769629852429,-150.0,0.00041855,30]
[403887505,1769629852438,-150.0,0.00041855,30]
[403887506,1769629852448,-150.0,0.0004186,30]
[403887507,1769629852459,-150.0,0.00041874,30]
[403887508,1769629852468,-150.0,0.00041874,30]
[403887509,1769629852478,-191.03050609,0.00041877,30]
[403887510,1769629852488,-152.41922063,0.00041877,30]
[403887511,1769629852498,-361.37453716,0.00041877,30]
[403887512,1769629852508,-150.0,0.00041888,30]
[403887513,1769629852518,-150.0,0.00041892,30]
[403887514,1769629852527,-174.76,0.00041894,2]
[403887515,1769629852538,-150.0,0.00041897,30]
[403887516,1769629852548,-319.42336867,0.000419,120]
[403887517,1769629852558,-152.48,0.00041905,120]
[403887518,1769629852568,-150.0,0.00041905,30]
[403887519,1769629852577,-500.0,0.00041905,60]
[403887520,1769629852587,-151.0,0.00041905,120]
[403887521,1769629852596,-150.0,0.00041916,30]
[403887522,1769629852606,-191.03050609,0.00041921,30]
[403887523,1769629852618,-152.41922063,0.00041921,30]
[403887524,1769629852627,-361.37453716,0.00041921,30]
[403887525,1769629852637,-150.0,0.00041933,30]
[403887526,1769629852647,-150.0,0.00041936,30]
[403887527,1769629852656,-150.0,0.0004194,30]
[403887528,1769629852666,-150.0,0.00041947,30]
[403887529,1769629852679,-150.0,0.00041949,30]
[403887530,1769629852688,-151.0,0.00041962,120]
[403887531,1769629852697,-151.0,0.00041962,120]
[403887532,1769629852706,-151.0,0.00041962,120]
[403887533,1769629852716,-151.0,0.00041962,120]
[403887534,1769629852727,-151.0,0.00041962,120]
[403887535,1769629852737,-2499.8,0.00041962,2]
[403887536,1769629852748,-191.03050609,0.00041965,30]
[403887537,1769629852758,-152.41922063,0.00041965,30]
[403887538,1769629852767,-361.37453716,0.00041965,30]
[403887539,1769629852777,-150.0,0.00041978,30]
[403887540,1769629852788,-150.0,0.00041987,30]
[403887541,1769629852799,-150.0,0.00041994,30]
[403887542,1769629852809,-150.0,0.00041997,30]
[403887543,1769629852818,-152.48,0.00042005,120]
[403887544,1769629852932,-191.03050609,0.00042009,30]
[403887545,1769629852944,-152.41922063,0.00042009,30]
[403887546,1769629852955,-361.37453716,0.00042009,30]
[403887547,1769629852967,-150.0,0.00042017,30]
[403887548,1769629852978,-150.0,0.00042023,30]
[403887549,1769629852987,-150.0,0.00042034,30]
[403887550,1769629852997,-150.0,0.00042034,30]
[403887551,1769629853006,-150.0,0.00042038,30]
[403887552,1769629853015,-150.0,0.00042042,30]
[403887553,1769629853024,-150.0,0.00042047,30]
[403887554,1769629853034,-191.03050609,0.00042053,30]
[403887555,1769629853043,-152.41922063,0.00042053,30]
[403887556,1769629853053,-361.37453716,0.00042053,30]
[403887557,1769629853063,-150.0,0.00042067,30]
[403887558,1769629853072,-151.0,0.00042081,14]
[403887559,1769629853082,-150.0,0.00042082,30]
[403887560,1769629853091,-150.0,0.00042083,30]
[403887561,1769629853100,-151.0,0.00042084,120]
[403887562,1769629853110,-151.0,0.00042084,15]
[403887563,1769629853120,-151.0,0.00042084,15]
[403887564,1769629853130,-151.0,0.00042084,15]
[403887565,1769629853140,-151.0,0.00042084,120]
[403887566,1769629853150,-151.0,0.00042084,120]
[403887567,1769629853159,-151.0,0.00042084,120]
[403887568,1769629853169,-151.0,0.00042084,120]
[403887569,1769629853179,-151.0,0.00042084,120]
[403887570,1769629853188,-151.0,0.00042084,120]
[403887571,1769629853198,-28053.15,0.00042084,2]
[403887572,1769629853207,-2499.8,0.00042097,2]
[403887573,1769629853217,-150.0,0.00042097,30]
[403887574,1769629853227,-191.03050609,0.00042097,30]
[403887575,1769629853238,-150.0,0.00042097,30]
[403887576,1769629853248,-150.0,0.00042097,30]